[Event "Bhopal GM Open 2019"]
[Site "Bhopal"]
[Date "2019.12.26"]
[Round "8.17"]
[White "Shiva Pavan Teja Sharma U"]
[Black "Ananthapadmanabh D V"]
[Result "1-0"]
[ECO "B33"]
[WhiteElo "2072"]
[BlackElo "1808"]
[Annotator "NA RC"]
[PlyCount "115"]
[EventDate "2019.12.21"]
[EventType "swiss"]
[EventCountry "IND"]
[SourceTitle "playchess.com"]
[Source "ChessBase"]
[SourceQuality "1"]
[TimeControl "5400+30"]

{[%evp 31,110,0,11,32767,32767,32767,32767,32767,32767,32767,32767,32767,48,56,76,60,70,58,32767,32767,32767,32767,22,5,10,0,0,0,19,27,32767,25,56,18,71,94,84,89,141,32767,32767,32767,32767,32767,164,112,149,160,182,179,235,125,107,127,154,133,145,210,247,282,244,298,296,349,347,350,407,383,474,663,1028,32767,32767,32767,32767,32767,32767,1714,2858,5620,29982]} 1. e4 {[%emt 0:01:53]} c5 {[%emt 0:00:00]} 2. Nf3 {[%emt 0:00:28]} Nc6 {[%emt 0:00:00]} 3. d4 {[%emt 0:00:27]} cxd4 {[%emt 0:00:00]} 4. Nxd4 {[%emt 0:00:06]} Nf6 {[%emt 0:00:00]} 5. Nc3 {[%emt 0:00:15]} e5 {[%emt 0:00:03]} 6. Ndb5 {[%emt 0:02:00]} d6 {[%emt 0:00:08]} 7. Bg5 {[%emt 0:01:57]} a6 {[%emt 0:00:08]} 8. Na3 {[%emt 0:04:21]} b5 {[%emt 0:00:32]} 9. Nd5 {[%emt 0:01:03]} Be7 {[%emt 0:00:06]} 10. Bxf6 {[%emt 0:00:15]} Bxf6 {[%emt 0:00:06]} 11. c3 {[%emt 0:00:16]} O-O {[%emt 0:00:13]} 12. Be2 {[%emt 0:00:25]} Bg5 {[%emt 0:00:07]} 13. O-O {[%emt 0:01:57]} Ne7 {[%emt 0:03:08]} 14. Nxe7+ {[%emt 0:01:53] B33: Sicilian: Pelikan and Sveshnikov Variations} Qxe7 {[%emt 0:00:38]} 15. Nc2 {[%emt 0:00:37]} Bb7 {[%emt 0:05:51]} 16. Bf3 {[%emt 0:06:51]} (16. Qd3 d5 17. exd5 Rad8 18. c4 bxc4 19. Qa3 Qc7 20. Rfd1 Bxd5 21. Qxa6 Ra8 {1-0 (72) Tukhaev,A (2527)-Carlsen,M (2835) St Petersburg 2018}) 16... Rab8 {[%emt 0:03:13]} 17. Nb4 {[%emt 0:04:15]} a5 $146 {[%emt 0:10:34]} ({Predecessor:} 17... g6 18. Qd3 f5 19. Rad1 Rbd8 20. Nd5 Qf7 {1-0 (35) Koller,J-Dorst,J (2139) Bad Zwesten 2001}) 18. Nd5 {[%emt 0:03:19]} Bxd5 {[%emt 0:01:02]} 19. Qxd5 {[%emt 0:00:13]} Rfd8 {[%emt 0:01:49]} 20. Rfd1 {[%emt 0:01:41]} Qa7 {[%emt 0:06:22]} 21. a3 {[%emt 0:02:52]} Qc5 {[%emt 0:16:24]} 22. Be2 {[%emt 0:03:53]} Kf8 {[%emt 0:11:49]} 23. Qb3 {[%emt 0:07:56]} d5 {[%emt 0:04:52]} 24. Rxd5 {[%emt 0:03:30]} Rxd5 {[%emt 0:00:24]} 25. Qxd5 {[%emt 0:00:06]} Qxd5 {[%emt 0:00:42]} 26. exd5 {[%emt 0:00:10]} Ke7 {[%emt 0:01:10]} 27. Kf1 {[%emt 0:01:49]} Kd6 {[%emt 0:00:49]} 28. Rd1 {[%emt 0:00:13]} f5 {[%emt 0:05:30]} 29. f3 {[%emt 0:01:47]} Be3 {[%emt 0:02:20]} 30. Bd3 {[%emt 0:01:33]} f4 {[%emt 0:04:16]} 31. h3 {[%emt 0:09:02]} g6 {[%emt 0:01:58]} 32. Ke2 {[%emt 0:05:27]} Rb6 {[%emt 0:05:48]} 33. h4 {[%emt 0:03:54]} Rb7 {[%emt 0:14:53]} 34. g4 {[%emt 0:02:13]} Rb6 {[%emt 0:03:10]} (34... b4 $142) 35. Be4 {[%emt 0:03:26]} b4 {[%emt 0:01:25]} 36. cxb4 {[%emt 0:04:53]} axb4 {[%emt 0:00:18]} 37. a4 {[%emt 0:00:24]} b3 {[%emt 0:00:26]} 38. Rh1 {[%emt 0:05:20]} Bd4 {[%emt 0:01:41]} 39. h5 {[%emt 0:00:18]} Bxb2 {[%emt 0:00:54]} 40. hxg6 {[%emt 0:00:16]} hxg6 {[%emt 0:00:04]} 41. Bxg6 {[%emt 0:00:51]} Kxd5 {[%emt 0:01:38] [#]} 42. Bf7+ $1 {[%emt 0:02:11]} Kc5 {[%emt 0:00:26]} 43. Rb1 {[%emt 0:00:34]} Bd4 {[%emt 0:00:39]} 44. Rxb3 {[%emt 0:00:24]} ({But not} 44. Bxb3 $6 Be3 $16) 44... Rf6 {[%emt 0:01:12]} (44... Ra6 $16) 45. Rb5+ {[%emt 0:00:31]} Kd6 {[%emt 0:00:18]} 46. Bd5 {[%emt 0:00:34]} Rh6 {[%emt 0:00:18]} 47. Kd3 {[%emt 0:00:23]} Rh1 {[%emt 0:00:27]} 48. Ke4 {[%emt 0:00:45]} Bc5 {[%emt 0:00:19]} 49. Bb7 {[%emt 0:01:03]} Rh8 {[%emt 0:01:10]} 50. a5 {[%emt 0:00:14]} Rf8 {[%emt 0:00:22]} 51. a6 {[%emt 0:00:13]} Bd4 {[%emt 0:00:12]} 52. Rb4 {[%emt 0:01:54]} Ba7 {[%emt 0:00:42]} 53. Rb5 {[%emt 0:00:13]} Bd4 {[%emt 0:00:20]} 54. Bd5 {[%emt 0:01:26]} Rc8 {[%emt 0:01:07]} 55. g5 {[%emt 0:01:14]} Ke7 {[%emt 0:00:31]} 56. a7 {[%emt 0:00:54]} Bxa7 {[%emt 0:00:09]} 57. Rb7+ {[%emt 0:00:03]} Kd6 {[%emt 0:00:09]} 58. Rxa7 {[%emt 0:00:06] Kxd5+} 1-0

[Event "Bhopal GM Open 2019"]
[Site "Bhopal"]
[Date "2019.12.26"]
[Round "8.18"]
[White "Rathneesh R"]
[Black "Tiwari Shivansh"]
[Result "1-0"]
[ECO "A15"]
[WhiteElo "2006"]
[BlackElo "1770"]
[Annotator "NA RC"]
[PlyCount "86"]
[EventDate "2019.12.21"]
[EventType "swiss"]
[EventCountry "IND"]
[SourceTitle "playchess.com"]
[Source "ChessBase"]
[SourceQuality "1"]
[TimeControl "5400+30"]

{[%evp 16,86,31,24,51,50,54,32767,32767,32767,32767,32767,32767,32767,32767,32767,32767,32767,47,43,38,25,26,17,32767,32767,32767,12,23,0,16,8,8,15,31,7,22,26,32767,32767,32767,32767,32767,32767,32767,32767,32767,32767,32767,32767,32767,32767,32767,32767,32767,32767,32767,2161,2397,2502,2029,0,2920,2167,2610,29970,12839,29975,5155,29981,29981,29983,29987]} 1. c4 {[%emt 0:00:10]} Nf6 {[%emt 0:00:00]} 2. g3 {[%emt 0:00:32]} e6 {[%emt 0:00:31]} 3. Bg2 {[%emt 0:00:24]} d5 {[%emt 0:00:19]} 4. Nf3 {[%emt 0:00:41]} c6 {[%emt 0:00:35]} 5. O-O {[%emt 0:00:57]} Nbd7 {[%emt 0:00:22]} 6. b3 {[%emt 0:01:19]} Bd6 {[%emt 0:01:21]} 7. Bb2 {[%emt 0:00:37]} O-O {[%emt 0:01:27]} 8. d4 {[%emt 0:00:25]} a5 {[%emt 0:05:43]} 9. Nc3 {[%emt 0:11:54]} Re8 {[%emt 0:06:53]} 10. Qc2 {[%emt 0:09:35]} b6 {[%emt 0:00:30]} 11. e4 {[%emt 0:00:30]} dxe4 {[%emt 0:00:30]} 12. Nxe4 {[%emt 0:00:30]} Nxe4 {[%emt 0:00:30]} 13. Qxe4 {[%emt 0:00:30]} Bb7 {[%emt 0:00:30]} 14. a4 {[%emt 0:00:30]} Qc7 {[%emt 0:00:30]} 15. Rad1 {[%emt 0:00:30]} Rad8 {[%emt 0:00:30]} 16. Qc2 {[%emt 0:00:30]} e5 {[%emt 0:00:30]} 17. dxe5 {[%emt 0:00:30]} Nxe5 {[%emt 0:00:30]} 18. Ng5 {[%emt 0:00:30]} Ng6 $1 {[%emt 0:00:30]} 19. Ne4 {[%emt 0:00:30]} Be5 {[%emt 0:00:30]} 20. Bxe5 {[%emt 0:00:30]} Nxe5 {[%emt 0:00:30]} 21. Rxd8 {[%emt 0:00:30]} Rxd8 {[%emt 0:00:30]} 22. Rd1 {[%emt 0:00:30]} Rxd1+ {[%emt 0:00:30]} 23. Qxd1 {[%emt 0:00:30]} c5 {[%emt 0:00:30]} 24. Nc3 {[%emt 0:00:30]} Bxg2 {[%emt 0:00:30]} 25. Kxg2 {[%emt 0:00:30]} Qc6+ {[%emt 0:00:30]} 26. Nd5 {[%emt 0:00:30]} Nd7 {[%emt 0:00:30]} 27. f3 {[%emt 0:00:30]} Qd6 {[%emt 0:00:30]} 28. Qd3 {[%emt 0:00:30]} Nf6 {[%emt 0:00:30]} 29. Qf5 {[%emt 0:00:30]} Nxd5 {[%emt 0:00:30]} 30. cxd5 {[%emt 0:00:30]} Kf8 {[%emt 0:00:30]} 31. f4 {[%emt 1:01:37]} g6 {[%emt 1:05:48]} 32. Qe5 {[%emt 0:03:59]} Qxe5 {[%emt 0:10:30]} 33. fxe5 {[%emt 0:00:01]} Ke7 {[%emt 0:01:44]} 34. Kf3 {[%emt 0:00:45]} Kd7 {[%emt 0:00:44]} 35. Ke4 {[%emt 0:00:57]} Ke7 {[%emt 0:00:22]} 36. g4 {[%emt 0:02:27]} h6 {[%emt 0:00:36]} 37. Kd3 {[%emt 0:00:57]} Kd7 {[%emt 0:00:32]} 38. Ke4 $2 {[%emt 0:00:18]} ({White should try} 38. h4 $18 Kc8 39. Kc4) 38... Ke7 {[%emt 0:00:06]} 39. h4 {[%emt 0:00:13]} f6 {[%emt 0:00:44]} 40. d6+ {[%emt 0:01:24]} Ke6 {[%emt 0:00:36]} 41. exf6 {[%emt 0:00:40]} Kxd6 {[%emt 0:00:28]} 42. g5 {[%emt 0:00:23]} hxg5 {[%emt 0:00:05]} 43. hxg5 {[%emt 0:00:01]} b5 {[%emt 0:00:56]} 1-0

[Event "Bhopal GM Open 2019"]
[Site "Bhopal"]
[Date "2019.12.26"]
[Round "8.19"]
[White "Love Jindal"]
[Black "Trivedi Karan R"]
[Result "1/2-1/2"]
[ECO "A65"]
[WhiteElo "1714"]
[BlackElo "1949"]
[Annotator "NA RC"]
[PlyCount "136"]
[EventDate "2019.12.21"]
[EventType "swiss"]
[EventCountry "IND"]
[SourceTitle "playchess.com"]
[Source "ChessBase"]
[SourceQuality "1"]
[TimeControl "5400+30"]

{[%evp 19,132,23,16,14,36,-11,32767,32767,32767,32767,32767,32767,32767,32767,32767,32767,71,72,75,25,26,16,24,39,15,0,90,77,85,109,95,25,22,0,0,0,0,0,0,0,0,0,0,0,61,4,91,0,0,0,2,0,0,0,0,119,-3,-74,98,32767,32767,32767,32767,0,32767,32767,32767,32767,32767,32767,32767,32767,32767,32767,32767,32767,32767,32767,32767,32767,32767,-24,0,32767,32767,32767,32767,32767,0,-644,-12835,-747,-1708,-12838,-1175,-1354,-1356,-12838,-1730,-4627,-1247,-942,0,0,-16,0,0,0,0,0,0,0,0,0,0]} 1. d4 {[%emt 0:00:00]} Nf6 {[%emt 0:00:00]} 2. c4 {[%emt 0:00:00]} e6 {[%emt 0:00:21]} 3. Nc3 {[%emt 0:00:58]} c5 {[%emt 0:00:50]} 4. d5 {[%emt 0:04:17]} exd5 {[%emt 0:00:42]} 5. cxd5 {[%emt 0:00:08]} d6 {[%emt 0:00:07]} 6. e4 {[%emt 0:00:05]} g6 {[%emt 0:00:35]} 7. Bd3 {[%emt 0:00:04]} Bg7 {[%emt 0:00:21]} 8. Nge2 {[%emt 0:01:31]} O-O {[%emt 0:00:36]} 9. O-O {[%emt 0:02:51]} Re8 {[%emt 0:02:51]} 10. Bg5 {[%emt 0:13:45]} a6 {[%emt 0:01:29]} 11. a4 {[%emt 0:02:11]} Nbd7 {[%emt 0:01:15] A65: Modern Benoni: 6 e4} 12. h3 {[%emt 0:05:20]} Qc7 {[%emt 0:02:38]} (12... Ne5 13. Bc2 Rb8 14. Rb1 h6 15. Bc1 b5 16. axb5 axb5 17. b4 {½-½ (60) Straka,Z (2547)-Papenin,N (2687) ICCF email 2013}) 13. Bc2 {[%emt 0:14:59]} c4 {[%emt 0:01:45]} 14. Be3 $146 {[%emt 0:02:59]} ({Predecessor:} 14. Ng3 h6 15. Be3 b6 16. Qd2 h5 17. f3 {1-0 (44) Kempen,L (1948)-Bes,R (1968) ICCF email 2013}) 14... Nc5 {[%emt 0:00:54]} 15. f3 {[%emt 0:00:30]} Bd7 {[%emt 0:01:06]} 16. a5 {[%emt 0:01:51]} Bb5 {[%emt 0:01:37]} 17. Bf2 {[%emt 0:04:54]} Bd7 {[%emt 0:05:51]} 18. Qd2 {[%emt 0:10:35]} Rab8 {[%emt 0:11:23]} 19. Na4 {[%emt 0:02:32]} Bxa4 {[%emt 0:02:16]} 20. Bxa4 {[%emt 0:00:02]} Nfd7 {[%emt 0:00:22]} 21. Bd4 {[%emt 0:01:35]} Bxd4+ {[%emt 0:02:27]} 22. Qxd4 {[%emt 0:00:46]} Nb3 {[%emt 0:01:12]} (22... b5 $11 23. axb6 Qxb6) 23. Bxb3 $1 {[%emt 0:00:48]} cxb3 {[%emt 0:00:02]} 24. Rfc1 {[%emt 0:02:09]} Nc5 {[%emt 0:00:22]} 25. Kh1 {[%emt 0:06:56]} (25. Nf4 $16) 25... Qe7 {[%emt 0:02:52]} 26. Rc3 {[%emt 0:01:55]} f5 {[%emt 0:00:53]} 27. Nc1 {[%emt 0:04:22]} fxe4 {[%emt 0:00:20]} 28. Nxb3 {[%emt 0:00:05]} Nxb3 {[%emt 0:08:11]} 29. Rxb3 {[%emt 0:00:02]} exf3 {[%emt 0:00:30]} 30. Rxf3 {[%emt 0:00:03]} Qe5 {[%emt 0:00:14]} 31. Qd2 {[%emt 0:02:54]} Re7 {[%emt 0:01:08]} 32. Raf1 {[%emt 0:00:15]} Rbe8 {[%emt 0:06:59]} (32... Kg7 $11) 33. b3 {[%emt 0:00:58]} ({White should try} 33. Qf2 $1 $14) 33... Kg7 {[%emt 0:00:53]} 34. Kg1 {[%emt 0:00:51]} Rc8 {[%emt 0:05:30]} 35. Qf2 {[%emt 0:06:58]} Rcc7 {[%emt 0:02:15]} 36. Rf8 {[%emt 0:01:01]} Qxd5 {[%emt 0:02:17]} 37. Qf6+ {[%emt 0:01:31]} (37. Rg8+ $11 Qxg8 38. Qf6+ {[%mdl 64] Double Attack} Kh6 39. Qh4+ Kg7 40. Qf6+ {[%mdl 64] Double Attack} Kh6 41. Qh4+ Kg7 42. Qf6+ {[%mdl 64] Double Attack}) 37... Kh6 {[%emt 0:00:02]} 38. Rf4 {[%emt 0:00:37]} (38. Qh4+ $11 {remains equal.} Qh5 39. Qf4+ Qg5 40. Qxd6) 38... Re5 $2 {[%emt 0:03:51]} (38... Qc5+ $17 {keeps the pressure on.} 39. Qd4 Qxd4+ 40. Rxd4 Rcd7) 39. Rh4+ {[%emt 0:02:56]} Rh5 {[%emt 0:00:02]} 40. Rxh5+ {[%emt 0:00:02]} Qxh5 {[%emt 0:00:49]} 41. Qxd6 {[%emt 0:02:28]} Qc5+ {[%emt 0:00:45]} 42. Qxc5 {[%emt 0:00:07]} Rxc5 {[%emt 0:00:02]} 43. b4 {[%emt 0:01:36]} Rc4 {[%emt 0:00:34]} 44. b5 {[%emt 0:00:15]} axb5 {[%emt 0:00:05]} 45. Rf7 {[%emt 0:00:01]} Ra4 {[%emt 0:00:12]} 46. Rxb7 {[%emt 0:00:07]} Rxa5 {[%emt 0:00:02]} 47. Kh2 {[%emt 0:00:21]} g5 {[%emt 0:00:41]} 48. Rb6+ {[%emt 0:00:27]} Kg7 {[%emt 0:00:06]} 49. Rb7+ {[%emt 0:00:03]} Kg6 {[%emt 0:00:17]} 50. Rb6+ {[%emt 0:00:45]} Kf5 {[%emt 0:01:25]} 51. Rh6 {[%emt 0:01:37]} b4 {[%emt 0:00:05]} 52. Rb6 {[%emt 0:00:05]} Ra4 {[%emt 0:00:08]} 53. Rb5+ {[%emt 0:00:05] [#]} Kf4 $2 {[%emt 0:00:37]} (53... Ke4 $1 $19 {[%cal Re4d3]} 54. h4 gxh4) 54. Rb8 $2 {[%emt 0:00:54]} (54. Rb7 h6 55. Rb6) 54... Ke4 {[%emt 0:00:59]} 55. Rb7 {[%emt 0:00:34]} Kd3 {[%emt 0:00:23]} 56. Kg3 {[%emt 0:00:25]} Kc3 {[%emt 0:00:29]} 57. Rc7+ {[%emt 0:00:15]} Kd2 {[%emt 0:02:39]} 58. Rd7+ {[%emt 0:00:24]} Kc2 {[%emt 0:01:43]} 59. Rc7+ {[%emt 0:00:06]} Kb1 {[%emt 0:00:43]} 60. Kg4 {[%emt 0:01:11] [#]} b3+ $2 {[%emt 0:06:44]} ({Black should try} 60... h6 $1 $19 61. Kh5 b3 62. Kxh6 g4) 61. Kxg5 {[%emt 0:00:08]} Rb4 {[%emt 0:00:08]} 62. Rxh7 {[%emt 0:00:21]} Kc1 {[%emt 0:01:28]} 63. Rf7 {[%emt 0:00:15]} Kd1 {[%emt 0:00:23]} ({Resist} 63... b2 64. Rf1+ Kc2 65. h4 $15) 64. Rf1+ {[%emt 0:01:26]} Ke2 {[%emt 0:00:24]} 65. Rb1 {[%emt 0:00:05]} Kf2 {[%emt 0:04:14]} 66. h4 {[%emt 0:00:03]} Kg3 $11 {[%emt 0:02:45]} 67. h5 {[%emt 0:00:09]} Rb5+ {[%emt 0:00:56]} 68. Kg6 {[%emt 0:00:02]} Rb6+ {[%emt 0:00:28]} 1/2-1/2

[Event "Bhopal GM Open 2019"]
[Site "Bhopal"]
[Date "2019.12.26"]
[Round "8.20"]
[White "Rathore, S.K."]
[Black "Aditya Rawat"]
[Result "1/2-1/2"]
[ECO "B01"]
[WhiteElo "1939"]
[BlackElo "1600"]
[Annotator "NA RC"]
[PlyCount "113"]
[EventDate "2019.12.21"]
[EventType "swiss"]
[EventCountry "IND"]
[SourceTitle "playchess.com"]
[Source "ChessBase"]
[SourceQuality "1"]
[TimeControl "5400+30"]

{[%evp 21,100,-49,-20,-125,-143,-164,32767,32767,32767,32767,32767,32767,-173,-185,-245,-229,-192,-193,-142,-201,-201,-297,-202,-191,-201,-199,-199,-551,-200,-201,-162,-152,-172,-192,-179,-193,32767,32767,-166,-182,-202,-185,-139,-153,-149,-203,-197,-227,-131,-158,-161,-148,-160,-155,-149,-201,32767,32767,32767,32767,32767,32767,32767,32767,32767,32767,32767,-47,-54,-54,-51,-38,-39,-155,-106,-274,-21,-132,-25,-106,0]} 1. e4 {[%emt 0:00:00]} d5 {[%emt 0:00:00]} 2. exd5 {[%emt 0:00:45]} Nf6 {[%emt 0:00:00]} 3. d4 {[%emt 0:00:27]} Bg4 {[%emt 0:00:00]} 4. Be2 {[%emt 0:02:06]} Bxe2 {[%emt 0:00:00]} 5. Qxe2 {[%emt 0:00:16]} Qxd5 {[%emt 0:00:03]} 6. Nf3 {[%emt 0:00:11]} Nc6 {[%emt 0:00:03]} 7. Be3 {[%emt 0:03:44] B01: Scandinavian Defence} e6 {[%emt 0:00:20]} 8. O-O {[%emt 0:00:36]} Bd6 {[%emt 0:00:48]} (8... O-O-O 9. c4 Qf5 10. Nc3 Bd6 11. Rad1 Rhe8 12. Rfe1 Bb4 13. a3 Bxc3 14. bxc3 Qa5 15. Qb2 Qa6 16. Rb1 Na5 17. Ne5 Nxc4 18. Nxc4 Qxc4 19. Qxb7+ {0-1 (58) Andriasian,Z (2600)-Adhiban,B (2683) chess.com INT 2019}) 9. Re1 {[%emt 0:02:32]} Qh5 $146 {[%emt 0:02:05]} ({Predecessor:} 9... O-O-O 10. c4 Qh5 11. c5 Bf8 12. Nc3 Rg8 13. b4 g5 14. Qc4 g4 15. Ne5 Nxe5 16. dxe5 {1-0 (45) Abreu Delgado,A (2442)-Sanchez Aller,F (2261) Cambados 2005}) 10. h3 {[%emt 0:01:35]} O-O-O {[%emt 0:01:11]} 11. c4 {[%emt 0:14:38]} g5 {[%emt 0:00:00]} 12. c5 {[%emt 0:07:03]} (12. Nxg5 $11 {keeps the balance.} Qg6 13. f4) 12... Bf4 {[%emt 0:00:00]} 13. Nc3 {[%emt 0:02:38]} Bxe3 {[%emt 0:00:58]} 14. fxe3 {[%emt 0:01:54]} g4 {[%emt 0:00:28]} 15. hxg4 {[%emt 0:15:31]} Nxg4 {[%emt 0:01:32]} 16. Ne4 {[%emt 0:13:18]} Rhg8 {[%emt 0:05:32]} 17. b4 {[%emt 0:05:42]} Qg6 {[%emt 0:04:27]} ({Inferior is} 17... Nxb4 18. Rab1 $11) 18. Neg5 {[%emt 0:03:54]} h6 {[%emt 0:00:44]} (18... Nxb4 19. Qb5 $11) 19. Nh3 {[%emt 0:03:04]} Qf5 {[%emt 0:08:51]} 20. e4 {[%emt 0:05:38]} (20. Kh1 $17 {was worth a try.}) 20... Qf6 {[%emt 0:00:38]} 21. e5 {[%emt 0:00:45]} (21. d5 $142 exd5 22. e5) 21... Qf5 {[%emt 0:00:16]} 22. Qe4 {[%emt 0:05:23] [#]} Ne3 $1 {[%emt 0:03:48]} 23. Rxe3 {[%emt 0:04:49]} Qxh3 $1 {[%emt 0:00:38]} 24. Nh2 $2 {[%emt 0:00:30] [#]} (24. Nh4 {is more resistant.} Qg4 25. Qxg4 Rxg4 26. Nf3) 24... Qh5 $2 {[%emt 0:00:46]} (24... Rxg2+ $1 {[%mdl 512]} 25. Qxg2 Qxe3+ {[%mdl 64] Double Attack} 26. Kh1 Qxd4 {[%mdl 64] Double Attack}) 25. Rd3 {[%emt 0:00:26]} Qg6 {[%emt 0:02:24]} 26. Qxg6 {[%emt 0:00:36]} Rxg6 {[%emt 0:00:04]} 27. Nf3 {[%emt 0:00:40]} Nxb4 {[%emt 0:02:05]} 28. Rd2 {[%emt 0:01:22]} Rdg8 {[%emt 0:01:56]} 29. Rf1 {[%emt 0:00:33]} Nd5 {[%emt 0:00:43]} 30. Nh2 {[%emt 0:00:16]} Ne3 {[%emt 0:03:03]} 31. Rff2 {[%emt 0:00:04]} c6 {[%emt 0:00:30]} 32. Nf1 {[%emt 0:00:49]} Nf5 {[%emt 0:00:58]} 33. Nh2 {[%emt 0:01:01]} (33. Rf3 $17) 33... h5 {[%emt 0:01:27]} 34. Rf3 {[%emt 0:00:43]} h4 {[%emt 0:02:20]} 35. Nf1 {[%emt 0:01:09]} Rg4 {[%emt 0:04:22]} 36. Ne3 {[%emt 0:00:22]} Nxe3 {[%emt 0:01:40]} 37. Rxe3 {[%emt 0:01:00]} Rf4 {[%emt 0:00:07]} 38. Rf2 {[%emt 0:01:09]} Rgg4 {[%emt 0:01:07]} 39. Ref3 {[%emt 0:00:10]} Rxf3 {[%emt 0:00:02]} 40. Rxf3 {[%emt 0:00:02]} Rxd4 {[%emt 0:00:02]} 41. Rxf7 {[%emt 0:00:07]} Rd5 {[%emt 0:00:41]} 42. Rf8+ {[%emt 0:00:16]} Kd7 {[%emt 0:00:41]} 43. Rf7+ {[%emt 0:00:05]} Kd8 {[%emt 0:00:18]} 44. Rxb7 {[%emt 0:00:23]} a5 {[%emt 0:00:23]} 45. Rh7 {[%emt 0:00:13]} Rxe5 {[%emt 0:01:11]} 46. Rxh4 {[%emt 0:00:04]} Rxc5 {[%emt 0:00:03]} 47. a4 {[%emt 0:01:01]} (47. Ra4 $15) 47... Kd7 {[%emt 0:03:01]} 48. Kf2 {[%emt 0:00:09]} (48. Rh7+ $17 {was the only chance.} Kd6 49. Ra7) 48... Rd5 {[%emt 0:00:29]} ({Better is} 48... Kd6 $17 49. Rh1 Rc4) 49. Ke3 {[%emt 0:00:09]} (49. Rh7+ $1 $11 {remains equal.} Kd6 50. Ra7) 49... Rg5 {[%emt 0:00:31]} (49... c5 $17 50. Rh7+ Kd6) 50. g4 $17 {[%emt 0:00:19]} (50. Rh7+ $1 $11 Kd6 51. Ra7) 50... e5 {[%emt 0:00:08]} 51. Rh7+ {[%emt 0:01:26]} Kd6 {[%emt 0:01:06]} 52. Ra7 {[%emt 0:00:35]} Rxg4 {[%emt 0:00:59]} 53. Rxa5 {[%emt 0:00:12]} Rb4 54. Ra8 Kc5 {[%emt 0:01:36]} 55. Ra5+ {[%emt 0:00:43]} Kb6 {[%emt 0:00:50]} 56. Rxe5 {[%emt 0:00:09]} Rxa4 {[%emt 0:00:01]} 57. Kd3 {[%emt 0:00:18]} 1/2-1/2

[Event "Bhopal GM Open 2019"]
[Site "Bhopal"]
[Date "2019.12.27"]
[Round "9.14"]
[White "Varun, Vij"]
[Black "Sreehith Reddy R"]
[Result "1-0"]
[ECO "E63"]
[WhiteElo "1964"]
[BlackElo "1865"]
[Annotator "NA RC"]
[PlyCount "95"]
[EventDate "2019.12.21"]
[EventType "swiss"]
[EventCountry "IND"]
[SourceTitle "playchess.com"]
[Source "ChessBase"]
[SourceQuality "1"]
[TimeControl "5400+30"]

1. d4 {[%emt 0:00:00]} Nf6 {[%emt 0:00:00]} 2. Nf3 {[%emt 0:00:00]} g6 {[%emt 0:00:00]} 3. g3 {[%emt 0:00:02]} Bg7 {[%emt 0:00:00]} 4. Bg2 {[%emt 0:00:06]} O-O {[%emt 0:00:21]} 5. O-O {[%emt 0:00:06]} d6 {[%emt 0:01:13]} 6. c4 {[%emt 0:01:42]} Nc6 {[%emt 0:00:43]} 7. Nc3 {[%emt 0:00:07]} a6 {[%emt 0:00:08]} 8. h3 {[%emt 0:00:20]} Bd7 {[%emt 0:00:09]} 9. e4 {[%emt 0:00:18]} e5 {[%emt 0:01:35] E63: King's Indian: Fianchetto: Panno Variation with 7...a6} 10. dxe5 {[%emt 0:00:06]} Nxe5 {[%emt 0:00:37]} (10... dxe5 11. Be3 Be6 12. Qa4 h6 13. Rad1 Qb8 14. Rfe1 Rd8 15. c5 Qa7 16. b4 Rac8 17. a3 Qb8 18. Qc2 Rxd1 19. Rxd1 {0-1 (58) Khismatullin,D (2634)-Fedoseev,V (2707) Satka 2018}) 11. c5 {[%emt 0:02:42]} Ne8 {[%emt 0:21:16]} 12. Nxe5 {[%emt 0:14:32]} dxe5 {[%emt 0:03:19]} 13. Kh2 $146 {[%emt 0:01:03]} ({Predecessor:} 13. Qb3 Qc8 14. Nd5 Kh8 15. Kh2 Be6 16. Qc2 f5 17. exf5 gxf5 {1-0 (27) Grossi,R (1888)-Harman,K (1806) ICCF email 2014}) 13... h6 {[%emt 0:13:42]} 14. Qb3 {[%emt 0:02:34]} Qb8 {[%emt 0:04:30]} 15. Be3 {[%emt 0:01:44]} Be6 {[%emt 0:00:29]} 16. Qc2 {[%emt 0:01:48]} c6 {[%emt 0:01:35]} 17. b4 {[%emt 0:07:36]} Nc7 {[%emt 0:02:20]} 18. a4 {[%emt 0:00:42]} Qe8 {[%emt 0:00:44]} 19. Rfd1 {[%emt 0:03:06]} f5 {[%emt 0:04:09]} 20. exf5 {[%emt 0:01:53]} gxf5 {[%emt 0:00:23]} 21. Rd6 {[%emt 0:02:08]} Qf7 {[%emt 0:07:53]} 22. f4 {[%emt 0:02:07]} e4 {[%emt 0:02:21]} 23. Bd4 {[%emt 0:01:59]} Bxd4 {[%emt 0:00:54]} 24. Rxd4 {[%emt 0:00:02]} Nd5 {[%emt 0:05:00]} 25. Nxd5 {[%emt 0:00:15]} Bxd5 {[%emt 0:00:14]} 26. Qd2 {[%emt 0:01:24]} Qg7 {[%emt 0:01:24]} 27. Ra3 {[%emt 0:02:32]} Kh8 {[%emt 0:09:56]} 28. g4 {[%emt 0:06:37]} Rg8 {[%emt 0:01:05]} 29. Rg3 {[%emt 0:01:15]} Qf6 {[%emt 0:06:10]} 30. Qe3 {[%emt 0:02:29]} Raf8 {[%emt 0:01:11]} 31. gxf5 {[%emt 0:02:30]} Rxg3 {[%emt 0:00:30]} 32. Kxg3 Qxf5 {[%emt 0:09:31]} 33. Bxe4 {[%emt 0:02:53]} Rg8+ {[%emt 0:01:25]} 34. Kh2 {[%emt 0:05:44]} Qe6 {[%emt 0:01:02]} 35. Qf3 {[%emt 0:00:23]} Bxe4 {[%emt 0:00:41]} 36. Rxe4 {[%emt 0:00:21]} Qa2+ {[%emt 0:00:40]} 37. Re2 {[%emt 0:00:58]} Qf7 {[%emt 0:00:26]} 38. Qc3+ {[%emt 0:00:33]} Rg7 {[%emt 0:00:19]} 39. Qe5 {[%emt 0:00:17]} Kh7 {[%emt 0:00:53]} 40. Qe4+ {[%emt 0:00:09]} Kg8 {[%emt 0:00:31]} 41. Qe6 {[%emt 0:05:12]} Kh7 {[%emt 0:00:37]} 42. Qxf7 {[%emt 0:00:09]} Rxf7 {[%emt 0:00:02]} 43. Kg3 {[%emt 0:00:13]} Kg7 {[%emt 0:00:41]} 44. Re6 {[%emt 0:00:21]} Rd7 {[%emt 0:00:20]} 45. Kg4 {[%emt 0:00:25]} Rf7 46. f5 {[%emt 0:01:32]} Rd7 {[%emt 0:01:13]} 47. Rd6 {[%emt 0:00:19]} Rf7 {[%emt 0:00:34]} 48. Kf4 $18 {[%emt 0:00:13]} 1-0